fUSD/lending_fUSD_20250322
["ID","MTS","AMOUNT","RATE_DAILY","PERIOD"]
[356532680,1742626245417,-1765.01,0.00046849,7]
[356532681,1742626245426,-500.0,0.00046849,120]
[356532682,1742626245436,-655.96,0.00046849,120]
[356532684,1742626245445,-3667.04,0.00046849,120]
[356532686,1742626245455,-1354.98,0.00046849,120]
[356532687,1742626245466,-500.0,0.00046849,120]
[356532688,1742626245476,-753.48,0.00046849,120]
[356532689,1742626245486,-180.4883023,0.00046849,120]
[356532690,1742626245495,-500.0,0.00046849,120]
[356532691,1742626245505,-1675.91,0.00046849,120]
[356532692,1742626245514,-500.0,0.00046849,120]
[356532693,1742626245524,-689.47,0.00046849,120]
[356532694,1742626245533,-500.0,0.00046849,120]
[356532695,1742626245543,-804.55,0.00046849,120]
[356532696,1742626245552,-500.0,0.00046849,120]
[356532697,1742626245562,-465.35733393,0.00046849,120]
[356532698,1742626245571,-500.0,0.00046849,120]
[356532699,1742626245581,-771.11,0.00046849,120]
[356532700,1742626245590,-530.43014193,0.00046849,120]
[356532701,1742626245599,-4259.07,0.00046849,120]
[356532702,1742626245609,-500.0,0.00046849,120]
[356532703,1742626245619,-500.0,0.00046849,120]
[356532704,1742626245629,-977.42,0.00046849,120]
[356532705,1742626245638,-1276.99,0.00046849,120]
[356532706,1742626245648,-509.79,0.00046849,120]
[356532707,1742626245658,-1335.59,0.00046849,120]
[356532708,1742626245667,-888.81,0.00046849,120]
[356532709,1742626245677,-500.0,0.00046849,120]
[356532710,1742626245686,-556.92,0.00046849,120]
[356532711,1742626245696,-529.28779452,0.00046849,120]
[356532712,1742626245706,-500.0,0.00046849,120]
[356532713,1742626245715,-500.0,0.00046849,120]
[356532714,1742626245726,-583.28202007,0.00046849,120]
[356532715,1742626245735,-500.0,0.00046849,120]
[356532716,1742626245745,-1369.52,0.00046849,120]
[356532717,1742626245755,-812.97,0.00046849,120]
[356532718,1742626245765,-500.0,0.00046849,120]
[356532719,1742626245775,-500.0,0.00046849,120]
[356532720,1742626245785,-1872.4,0.00046849,120]
[356532721,1742626245795,-721.1,0.00046849,120]
[356532722,1742626245805,-694.19,0.00046849,120]
[356532723,1742626245816,-500.0,0.00046849,120]
[356532731,1742626246062,-500.0,0.00046849,120]
[356532732,1742626246072,-1383.31,0.00046849,120]
[356532733,1742626246082,-2490.28,0.00046849,120]
[356532734,1742626246091,-897.34,0.00046849,120]
[356532735,1742626246100,-500.0,0.00046849,120]
[356532736,1742626246110,-1365.39,0.00046849,120]
[356532737,1742626246119,-1161.62,0.00046849,120]
[356532738,1742626246129,-656.23,0.00046849,120]
[356532739,1742626246138,-1328.17,0.00046849,120]
[356532740,1742626246147,-762.19,0.00046849,120]
[356532741,1742626246157,-2809.05,0.00046849,120]
[356532742,1742626246166,-900.77,0.00046849,120]
[356532743,1742626246175,-500.0,0.00046849,120]
[356532744,1742626246185,-500.0,0.00046849,120]
[356532745,1742626246194,-600.64926044,0.00046849,120]
[356532746,1742626246204,-500.0,0.00046849,120]
[356532747,1742626246213,-500.0,0.00046849,120]
[356532748,1742626246223,-518.82,0.00046849,120]
[356532749,1742626246233,-500.0,0.00046849,120]
[356532750,1742626246242,-664.89,0.00046849,120]
[356532751,1742626246252,-2093.58,0.00046849,120]
[356532752,1742626246262,-942.89,0.00046849,120]
[356532753,1742626246271,-2416.46,0.00046849,120]
[356532754,1742626246281,-1956.81,0.00046849,120]
[356532755,1742626246291,-500.0,0.00046849,120]
[356532756,1742626246300,-500.0,0.00046849,120]
[356532757,1742626246310,-500.0,0.00046849,120]
[356532758,1742626246320,-500.0,0.00046849,120]
[356532759,1742626246335,-4691.6,0.00046849,120]
[356532760,1742626246344,-302.07404246,0.00046849,120]
[356532761,1742626246354,-1170.25,0.00046849,120]
[356532762,1742626246364,-998.39,0.00046849,120]
[356532763,1742626246373,-4101.3,0.00046849,120]
[356532764,1742626246383,-2323.02,0.00046849,120]
[356532765,1742626246393,-31802.05588347,0.00046849,30]
[356532766,1742626246402,-150.0,0.0004685,120]
[356532767,1742626246411,-150.0,0.0004687,7]
[356532768,1742626246421,-500.0,0.00046873,2]
[356532769,1742626246431,-150.0,0.00046873,7]
[356532770,1742626246440,-284.18,0.00046879,2]
[356532771,1742626246450,-150.0,0.00046885,7]
[356532772,1742626246459,-150.0,0.0004689,30]
[356532773,1742626246473,-150.0,0.0004689,7]
[356532774,1742626246483,-150.0,0.00046892,7]
[356532775,1742626246492,-150.67,0.00046893,2]
[356532776,1742626246502,-797.94,0.000469,32]
[356532777,1742626246512,-150.0,0.00046903,7]
[356532778,1742626246522,-256.46653952,0.00046908,120]
[356532779,1742626246532,-150.0,0.00046911,30]
[356532780,1742626246542,-150.0,0.00046911,30]
[356532781,1742626246551,-150.0,0.00046917,14]
[356532782,1742626246562,-150.0,0.00046918,7]
[356532783,1742626246572,-191.84717264,0.00046926,7]
[356532784,1742626246582,-150.0,0.00046926,7]
[356532785,1742626246592,-150.0,0.00046932,14]
[356532786,1742626246602,-150.0,0.00046942,14]
[356532787,1742626246611,-919.60179343,0.00046951,14]
[356532788,1742626246622,-284.18,0.00046975,2]
[356532789,1742626246632,-150.0,0.00046975,30]
[356532790,1742626246641,-256.46653952,0.0004698,120]
[356532791,1742626246651,-581.88,0.00046985,120]
[356532792,1742626246660,-150.0,0.00046996,7]
[356532793,1742626246670,-610.72,0.00046999,120]
[356532794,1742626246679,-610.72,0.00046999,120]
[356532795,1742626246689,-610.72,0.00046999,120]
[356532796,1742626246698,-610.72,0.00046999,120]
[356532797,1742626246708,-610.72,0.00046999,120]
[356532798,1742626246717,-1477.44822586,0.00046999,120]
[356532799,1742626246726,-580.46,0.00046999,120]
[356532800,1742626246735,-500.0,0.00046999,120]
[356532801,1742626246745,-596.0,0.00047,120]
[356532802,1742626246755,-10000.0,0.00047,120]
[356532803,1742626246765,-1500.0,0.00047,30]
[356532804,1742626246774,-30011.22,0.00047,120]
[356532805,1742626246784,-170.66881947,0.00047,30]
[356532806,1742626246793,-150.0,0.00047,14]
[356532807,1742626246802,-1000.0,0.00047006,14]
[356532808,1742626246812,-168.55,0.00047007,2]
[356532809,1742626246821,-150.0,0.00047032,30]
[356532810,1742626246832,-151.22588125,0.00047034,7]
[356532811,1742626246841,-150.0,0.00047039,7]
[356532812,1742626246850,-150.0,0.00047049,7]
[356532813,1742626246860,-256.46653952,0.00047052,120]
[356532814,1742626246870,-150.0,0.00047056,7]
[356532815,1742626246879,-150.0,0.0004706,30]
[356532816,1742626246889,-284.18,0.0004707,2]
[356532817,1742626246899,-150.0,0.00047077,7]
[356532818,1742626246909,-150.0,0.00047082,7]
[356532819,1742626246919,-295.3733853,0.00047091,2]
[356532820,1742626246929,-295.3733853,0.00047091,2]
[356532821,1742626246938,-295.3733853,0.00047091,2]
[356532822,1742626246947,-295.3733853,0.00047091,2]
[356532823,1742626246957,-295.3733853,0.00047091,2]
[356532824,1742626246967,-156.9283719,0.00047091,2]
[356532825,1742626246976,-156.9283719,0.00047091,2]
[356532826,1742626246986,-156.9283719,0.00047091,2]
[356532827,1742626246995,-156.9283719,0.00047091,2]
[356532828,1742626247005,-156.9283719,0.00047091,2]
[356532829,1742626247015,-1369.1046326,0.00047091,2]
[356532830,1742626247024,-1105.0054815,0.00047091,2]
[356532831,1742626247034,-840.9063304,0.00047091,2]
[356532832,1742626247043,-576.8071793,0.00047091,2]
[356532833,1742626247052,-312.7080281,0.00047091,2]
[356532834,1742626247062,-336.251794,0.000471,37]
[356532835,1742626247071,-797.94,0.000471,33]
[356532836,1742626247080,-500.0,0.00047122,120]
[356532837,1742626247090,-500.0,0.00047122,120]
[356532838,1742626247099,-500.0,0.00047122,120]
[356532839,1742626247108,-610.72,0.00047122,120]
[356532840,1742626247118,-610.72,0.00047122,120]
[356532841,1742626247127,-500.0,0.00047122,120]
[356532842,1742626247136,-500.0,0.00047122,120]
[356532843,1742626247146,-580.46,0.00047122,120]
[356532844,1742626247155,-580.46,0.00047122,120]
[356532845,1742626247164,-500.0,0.00047122,120]
[356532846,1742626247174,-500.0,0.00047122,120]
[356532847,1742626247183,-500.0,0.00047122,120]
[356532848,1742626247192,-500.0,0.00047123,120]
[356532849,1742626247201,-500.0,0.00047123,120]
[356532850,1742626247211,-1281.507944,0.00047123,120]
[356532851,1742626247220,-500.0,0.00047123,120]
[356532852,1742626247229,-857.21,0.00047123,120]
[356532853,1742626247238,-1034.46,0.00047123,120]
[356532854,1742626247247,-1039.274632,0.00047123,120]
[356532855,1742626247258,-548.93,0.00047123,120]
[356532856,1742626247267,-500.0,0.00047123,120]
[356532857,1742626247277,-795.21,0.00047123,120]
[356532858,1742626247292,-500.0,0.00047123,20]
[356532859,1742626247301,-500.0,0.00047123,120]
[356532860,1742626247312,-500.0,0.00047123,120]
[356532861,1742626247323,-500.0,0.00047123,120]
[356532862,1742626247333,-500.0,0.00047123,120]
[356532863,1742626247342,-515.89270649,0.00047123,120]
[356532864,1742626247351,-500.0,0.00047123,120]
[356532865,1742626247360,-500.0,0.00047123,120]
[356532866,1742626247370,-500.0,0.00047123,120]
[356532867,1742626247380,-1360.67,0.00047123,120]
[356532868,1742626247390,-500.0,0.00047123,120]
[356532869,1742626247399,-642.84,0.00047123,120]
[356532870,1742626247408,-562.04,0.00047123,120]
[356532871,1742626247418,-500.0,0.00047123,120]
[356532872,1742626247427,-500.0,0.00047123,120]
[356532873,1742626247436,-620.37,0.00047123,120]
[356532874,1742626247446,-500.0,0.00047123,120]
[356532875,1742626247455,-552.63,0.00047123,120]
[356532876,1742626247467,-500.0,0.00047123,120]
[356532877,1742626247478,-1318.18,0.00047123,120]
[356532878,1742626247487,-552.79,0.00047123,120]
[356532879,1742626247497,-500.0,0.00047123,120]
[356532881,1742626247506,-500.0,0.00047123,120]
[356532882,1742626247518,-336.51964079,0.00047123,120]
[356532883,1742626247527,-1114.31,0.00047123,120]
[356532884,1742626247537,-500.0,0.00047123,120]
[356532885,1742626247550,-500.0,0.00047123,120]
[356532886,1742626247560,-500.0,0.00047123,120]
[356532887,1742626247570,-500.0,0.00047123,120]
[356532888,1742626247579,-500.0,0.00047123,120]
[356532889,1742626247589,-779.86,0.00047123,120]
[356532890,1742626247599,-528.83,0.00047123,120]
[356532891,1742626247608,-500.0,0.00047123,120]
[356532892,1742626247618,-500.0,0.00047123,120]
[356532893,1742626247627,-500.0,0.00047123,120]
[356532894,1742626247637,-500.0,0.00047123,120]
[356532895,1742626247646,-500.0,0.00047123,120]
[356532896,1742626247655,-653.77,0.00047123,120]
[356532897,1742626247665,-1237.38,0.00047123,120]
[356532898,1742626247675,-500.0,0.00047123,120]
[356532899,1742626247684,-167.28067865,0.00047123,120]
[356532900,1742626247693,-692.33,0.00047123,120]
[356532901,1742626247702,-500.0,0.00047123,120]
[356532902,1742626247711,-500.0,0.00047123,120]
[356532903,1742626247721,-500.0,0.00047123,120]
[356532904,1742626247731,-500.0,0.00047123,120]
[356532905,1742626247740,-1007.4,0.00047123,120]
[356532906,1742626247749,-500.0,0.00047123,120]
[356532907,1742626247758,-500.0,0.00047123,120]
[356532908,1742626247767,-291.26299703,0.00047123,120]
[356532909,1742626247777,-500.0,0.00047123,120]
[356532910,1742626247785,-500.0,0.00047123,120]
[356532911,1742626247795,-500.0,0.00047123,120]
[356532912,1742626247804,-500.0,0.00047123,120]
[356532913,1742626247814,-500.0,0.00047123,120]
[356532914,1742626247823,-982.65,0.00047123,120]
[356532915,1742626247833,-500.0,0.00047123,120]
[356532916,1742626247842,-705.49,0.00047123,120]
[356532917,1742626247851,-500.0,0.00047123,120]
[356532918,1742626247861,-599.35,0.00047123,120]
[356532919,1742626247871,-500.0,0.00047123,120]
[356532920,1742626247880,-500.0,0.00047123,120]
[356532921,1742626247890,-500.0,0.00047123,120]
[356532922,1742626247899,-500.0,0.00047123,120]
[356532923,1742626247908,-890.92,0.00047123,120]
[356532924,1742626247918,-500.0,0.00047123,2]
[356532925,1742626247928,-500.0,0.00047123,120]
[356532926,1742626247937,-500.0,0.00047123,120]
[356532927,1742626247946,-601.43,0.00047123,120]
[356532928,1742626247956,-500.0,0.00047123,120]
[356532929,1742626247966,-500.0,0.00047123,120]
[356532930,1742626247975,-644.72,0.00047123,120]
[356532931,1742626247985,-506.69,0.00047123,120]
[356532932,1742626247993,-500.0,0.00047123,120]
[356532933,1742626248003,-500.0,0.00047123,120]
[356532934,1742626248012,-500.0,0.00047123,120]
[356532935,1742626248021,-1304.01,0.00047123,120]
[356532936,1742626248031,-500.0,0.00047123,120]
[356532937,1742626248040,-500.0,0.00047123,120]
[356532938,1742626248049,-500.0,0.00047123,120]
[356532939,1742626248059,-783.11,0.00047123,120]
[356532940,1742626248069,-500.0,0.00047123,120]
[356532941,1742626248078,-500.0,0.00047123,120]
[356532942,1742626248087,-796.03,0.00047123,120]
[356532943,1742626248096,-642.84,0.00047123,120]
[356532944,1742626248105,-500.0,0.00047123,120]
[356532945,1742626248115,-500.0,0.00047123,120]
[356532946,1742626248124,-809.69,0.00047123,2]
[356532947,1742626248134,-597.94,0.00047123,120]
[356532948,1742626248143,-790.41,0.00047123,120]
[356532949,1742626248152,-862.06,0.00047123,120]
[356532950,1742626248161,-500.0,0.00047123,120]
[356532951,1742626248171,-2007.99,0.00047123,120]
[356532952,1742626248180,-500.0,0.00047123,120]
[356532953,1742626248190,-500.0,0.00047123,120]
[356532954,1742626248199,-500.0,0.00047123,120]
[356532955,1742626248209,-944.75,0.00047123,120]
[356532956,1742626248218,-683.11,0.00047123,120]
[356532957,1742626248228,-707.3,0.00047123,120]
[356532958,1742626248237,-500.0,0.00047123,120]
[356532959,1742626248247,-500.0,0.00047123,120]
[356532960,1742626248256,-500.0,0.00047123,120]
[356532961,1742626248265,-500.0,0.00047123,120]
[356532962,1742626248275,-500.0,0.00047123,120]
[356532963,1742626248284,-500.0,0.00047123,120]
[356532964,1742626248293,-2157.88,0.00047123,120]
[356532965,1742626248303,-433.90327766,0.00047123,120]
[356532966,1742626248312,-500.0,0.00047123,120]
[356532967,1742626248321,-915.67,0.00047123,120]
[356532968,1742626248395,-659.98,0.00047123,120]
[356532969,1742626248405,-500.0,0.00047123,120]
[356532970,1742626248415,-500.0,0.00047123,120]
[356532971,1742626248424,-1002.14,0.00047123,120]
[356532972,1742626248433,-500.0,0.00047123,120]
[356532973,1742626248442,-500.0,0.00047123,120]
[356532974,1742626248451,-592.46,0.00047123,120]
[356532975,1742626248461,-829.99,0.00047123,120]
[356532976,1742626248473,-500.0,0.00047123,120]
[356532977,1742626248484,-1609.93,0.00047123,120]
[356532978,1742626248493,-500.0,0.00047123,120]
[356532979,1742626248502,-500.0,0.00047123,120]
[356532980,1742626248511,-500.0,0.00047123,120]
[356532981,1742626248520,-500.0,0.00047123,120]
[356532982,1742626248529,-500.0,0.00047123,120]
[356532983,1742626248538,-500.0,0.00047123,120]
[356532984,1742626248549,-2062.88,0.00047123,120]
[356532985,1742626248559,-649.91,0.00047123,120]
[356532986,1742626248568,-689.21,0.00047123,120]
[356532987,1742626248577,-308.22317592,0.00047123,120]
[356532988,1742626248587,-176.72623028,0.00047123,120]
[356532989,1742626248596,-500.0,0.00047123,120]
[356532990,1742626248605,-1066.09,0.00047123,120]
[356532991,1742626248615,-500.0,0.00047123,120]
[356532992,1742626248624,-500.0,0.00047123,120]
[356532993,1742626248633,-500.0,0.00047123,120]
[356532994,1742626248642,-500.0,0.00047123,120]
[356532995,1742626248652,-500.0,0.00047123,120]
[356532996,1742626248661,-500.0,0.00047123,120]
[356532997,1742626248671,-500.0,0.00047123,120]
[356532998,1742626248680,-500.0,0.00047123,120]
[356532999,1742626248689,-768.08,0.00047123,120]
[356533000,1742626248698,-500.0,0.00047123,120]
[356533001,1742626248707,-1456.11,0.00047123,7]
[356533002,1742626248717,-500.0,0.00047123,120]
[356533003,1742626248726,-500.0,0.00047123,30]
[356533004,1742626248735,-500.0,0.00047123,120]
[356533005,1742626248744,-500.0,0.00047123,120]
[356533006,1742626248754,-532.32585919,0.00047123,120]
[356533007,1742626248763,-2043.78,0.00047123,120]
[356533008,1742626248773,-500.0,0.00047123,120]
[356533009,1742626248783,-500.0,0.00047123,120]
[356533010,1742626248792,-891.4,0.00047123,120]
[356533011,1742626248802,-544.26,0.00047123,120]
[356533012,1742626248811,-925.91,0.00047123,120]
[356533013,1742626248821,-500.0,0.00047123,120]
[356533014,1742626248831,-709.45,0.00047123,120]
[356533015,1742626248840,-500.0,0.00047123,120]
[356533016,1742626248850,-500.0,0.00047123,120]
[356533017,1742626248859,-500.0,0.00047123,120]
[356533018,1742626248869,-500.0,0.00047123,120]
[356533019,1742626248879,-500.0,0.00047123,120]
[356533020,1742626248888,-2642.39,0.00047123,120]
[356533021,1742626248898,-1007.67,0.00047123,120]
[356533022,1742626248907,-500.0,0.00047123,120]
[356533023,1742626248917,-500.0,0.00047123,120]
[356533024,1742626248926,-1064.89,0.00047123,120]
[356533025,1742626248935,-942.27,0.00047123,120]
[356533026,1742626248944,-1160.32,0.00047123,120]
[356533027,1742626248953,-500.0,0.00047123,120]
[356533028,1742626248963,-577.51,0.00047123,120]
[356533029,1742626248972,-644.77,0.00047123,120]
[356533030,1742626248981,-1075.51,0.00047123,120]
[356533031,1742626248991,-561.88,0.00047123,120]
[356533032,1742626249000,-569.56,0.00047123,120]
[356533033,1742626249010,-500.0,0.00047123,120]
[356533034,1742626249019,-500.0,0.00047123,120]
[356533035,1742626249029,-500.0,0.00047123,120]
[356533036,1742626249039,-500.0,0.00047123,120]
[356533037,1742626249049,-895.61,0.00047123,120]
[356533038,1742626249058,-500.0,0.00047123,120]
[356533039,1742626249068,-865.66,0.00047123,120]
[356533040,1742626249078,-492.97689993,0.00047123,120]
[356533041,1742626249088,-500.0,0.00047123,120]
[356533042,1742626249098,-791.21,0.00047123,120]
[356533043,1742626249107,-500.0,0.00047123,120]
[356533044,1742626249117,-500.0,0.00047123,120]
[356533045,1742626249127,-500.0,0.00047123,120]
[356533046,1742626249136,-553.43,0.00047123,120]
[356533047,1742626249146,-539.86,0.00047123,120]
[356533048,1742626249155,-956.04,0.00047123,120]
[356533049,1742626249165,-500.0,0.00047123,120]
[356533050,1742626249174,-500.0,0.00047123,120]
[356533051,1742626249184,-512.96,0.00047123,120]
[356533052,1742626249193,-1315.43,0.00047123,120]
[356533053,1742626249202,-500.0,0.00047123,120]
[356533054,1742626249211,-803.02,0.00047123,120]
[356533055,1742626249220,-761.27,0.00047123,120]
[356533056,1742626249230,-500.0,0.00047123,120]
[356533057,1742626249239,-500.0,0.00047123,120]
[356533058,1742626249248,-500.0,0.00047123,120]
[356533059,1742626249257,-673.38,0.00047123,120]
[356533060,1742626249266,-500.0,0.00047123,120]
[356533061,1742626249275,-500.0,0.00047123,120]
[356533062,1742626249285,-500.0,0.00047123,120]
[356533063,1742626249295,-1377.7,0.00047123,120]
[356533064,1742626249304,-285.95155002,0.00047123,120]
[356533065,1742626249313,-806.3,0.00047123,120]
[356533066,1742626249323,-500.0,0.00047123,120]
[356533067,1742626249332,-500.0,0.00047123,120]
[356533068,1742626249342,-500.0,0.00047123,120]
[356533069,1742626249351,-905.82,0.00047123,120]
[356533070,1742626249361,-500.0,0.00047123,120]
[356533071,1742626249370,-567.9,0.00047123,120]
[356533072,1742626249380,-578.97,0.00047123,120]
[356533073,1742626249389,-941.3,0.00047123,120]
[356533074,1742626249399,-412.29,0.00047123,120]
[356533075,1742626249409,-818.81,0.00047123,120]
[356533076,1742626249419,-1806.21,0.00047123,120]
[356533077,1742626249428,-1303.14,0.00047123,120]
[356533078,1742626249437,-927.86,0.00047123,120]
[356533079,1742626249446,-1230.55,0.00047123,120]
[356533080,1742626249455,-500.0,0.00047123,120]
[356533081,1742626249467,-566.51,0.00047123,120]
[356533082,1742626249477,-500.0,0.00047123,120]
[356533083,1742626249486,-739.99,0.00047123,120]
[356533084,1742626249495,-580.4,0.00047123,120]
[356533085,1742626249505,-525.85,0.00047123,120]
[356533086,1742626249514,-597.48,0.00047123,120]
[356533087,1742626249523,-691.75,0.00047123,120]
[356533088,1742626249532,-724.1,0.00047123,120]
[356533089,1742626249542,-1395.14,0.00047123,120]
[356533090,1742626249553,-500.0,0.00047123,120]
[356533091,1742626249563,-500.0,0.00047123,120]
[356533092,1742626249572,-500.0,0.00047123,120]
[356533093,1742626249581,-500.0,0.00047123,120]
[356533094,1742626249591,-586.86,0.00047123,120]
[356533095,1742626249600,-1459.19,0.00047123,120]
[356533096,1742626249609,-827.07,0.00047123,120]
[356533097,1742626249619,-530.55,0.00047123,120]
[356533098,1742626249628,-1091.46,0.00047123,120]
[356533099,1742626249638,-942.81,0.00047123,120]
[356533100,1742626249647,-500.0,0.00047123,120]
[356533101,1742626249656,-951.85,0.00047123,120]
[356533102,1742626249667,-500.0,0.00047123,120]
[356533103,1742626249676,-500.0,0.00047123,120]
[356533104,1742626249685,-602.72,0.00047123,120]
[356533105,1742626249694,-500.0,0.00047123,120]
[356533106,1742626249704,-791.43,0.00047123,120]
[356533107,1742626249713,-814.76,0.00047123,120]
[356533108,1742626249722,-741.88,0.00047123,120]
[356533109,1742626249732,-500.0,0.00047123,120]
[356533110,1742626249742,-500.0,0.00047123,120]
[356533111,1742626249751,-852.76,0.00047123,120]
[356533112,1742626249761,-500.0,0.00047123,120]
[356533113,1742626249770,-681.19,0.00047123,120]
[356533114,1742626249779,-500.0,0.00047123,120]
[356533115,1742626249790,-500.0,0.00047123,120]
[356533116,1742626249799,-585.55,0.00047123,120]
[356533117,1742626249808,-2877.74,0.00047123,120]
[356533118,1742626249819,-500.0,0.00047123,120]
[356533119,1742626249828,-628.71,0.00047123,120]
[356533120,1742626249838,-871.63,0.00047123,120]
[356533121,1742626249848,-500.0,0.00047123,120]
[356533122,1742626249857,-500.0,0.00047123,120]
[356533123,1742626249866,-460.11764988,0.00047123,120]
[356533124,1742626249875,-500.0,0.00047123,120]
[356533125,1742626249885,-500.0,0.00047123,120]
[356533126,1742626249894,-500.0,0.00047123,120]
[356533127,1742626249903,-1785.63,0.00047123,120]
[356533128,1742626249912,-646.05,0.00047123,120]
[356533129,1742626249921,-1144.59,0.00047123,120]
[356533130,1742626249930,-898.45,0.00047123,120]
[356533131,1742626249939,-500.0,0.00047123,120]
[356533132,1742626249948,-500.0,0.00047123,120]
[356533133,1742626249957,-1837.12,0.00047123,120]
[356533134,1742626249966,-500.0,0.00047123,120]
[356533135,1742626249975,-831.07,0.00047123,120]
[356533136,1742626249984,-500.0,0.00047123,120]
[356533137,1742626249993,-567.43,0.00047123,120]
[356533138,1742626250003,-946.77,0.00047123,120]
[356533139,1742626250014,-672.77,0.00047123,120]
[356533140,1742626250025,-1108.78,0.00047123,120]
[356533141,1742626250034,-500.0,0.00047123,120]
[356533142,1742626250043,-500.0,0.00047123,120]
[356533143,1742626250054,-915.57,0.00047123,120]
[356533144,1742626250064,-1580.21,0.00047123,10]
[356533145,1742626250074,-718.32746938,0.00047123,120]
[356533147,1742626251235,-500.0,0.00046499,120]
[356533148,1742626251245,-210.89172499,0.00046499,120]
[356533149,1742626251257,-289.10827501,0.00046499,120]
[356533150,1742626251266,-422.67186435,0.00046499,120]
[356533151,1742626251276,-500.0,0.00046499,120]
[356533152,1742626251285,-500.0,0.00046575,120]
[356533153,1742626251295,-500.0,0.00046575,120]
[356533154,1742626251305,-500.0,0.00046575,120]
[356533155,1742626251314,-2111.98986064,0.0004679,38]
[356533156,1742626251326,-2100.38747353,0.0004679,38]
[356533157,1742626251337,-500.0,0.00046849,120]
[356533158,1742626251346,-500.0,0.00046849,120]
[356533159,1742626251356,-500.0,0.00046849,120]
[356533160,1742626251365,-500.0,0.00046849,120]
[356533161,1742626251375,-1210.76253062,0.00047123,120]
[356533162,1742626251384,-1274.84,0.00047123,120]
[356533163,1742626251394,-1302.39,0.00047123,120]
[356533164,1742626251403,-500.0,0.00047123,120]
[356533165,1742626251413,-500.0,0.00047123,120]
[356533166,1742626251422,-516.75,0.00047123,120]
[356533167,1742626251431,-756.12,0.00047123,120]
[356533168,1742626251440,-2463.8,0.00047123,120]
[356533169,1742626251450,-596.26,0.00047123,120]
[356533170,1742626251459,-1847.18,0.00047123,120]
[356533171,1742626251470,-500.0,0.00047123,120]
[356533172,1742626251480,-500.0,0.00047123,120]
[356533173,1742626251490,-500.0,0.00047123,120]
[356533174,1742626251499,-2004.22,0.00047123,120]
[356533175,1742626251508,-1280.4,0.00047123,120]
[356533176,1742626251518,-1157.37,0.00047123,120]
[356533177,1742626251527,-1278.04982634,0.00047123,120]
[356533178,1742626251844,-463.72725999,0.00046575,120]
[356533179,1742626251856,-36.27274001,0.00046575,120]
[356533180,1742626251867,-270.67169231,0.00046849,120]
[356533181,1742626251879,-229.32830769,0.00046849,120]
[356533182,1742626251889,-320.37017366,0.00047123,120]
[356533183,1742626251899,-966.21,0.00047123,120]
[356533184,1742626251909,-529.60412965,0.00047123,120]
[356533185,1742626251918,-500.0,0.00047123,120]
[356533186,1742626251928,-1868.63,0.00047123,120]
[356533187,1742626251939,-563.81,0.00047123,120]
[356533188,1742626251949,-500.0,0.00047123,120]
[356533189,1742626251960,-1115.54,0.00047123,120]
[356533190,1742626251970,-500.0,0.00047123,120]